fUSD/lending_fUSD_20250816
["ID","MTS","AMOUNT","RATE_DAILY","PERIOD"]
[379475117,1755302427179,654.55,0.00028,30]
[379475119,1755302480052,150.0,0.00028,30]
[379475120,1755302494857,278.0,0.00028,30]
[379475122,1755302503348,458.09,0.00013699,2]
[379475123,1755302505634,3232.67335449,0.00028,30]
[379475124,1755302817543,152.0,0.00025019,62]
[379475125,1755302817900,152.0,0.00024985,61]
[379475126,1755302818282,152.0,0.0002495,60]
[379475127,1755302819161,152.0,0.00024915,59]
[379475128,1755302820091,152.0,0.0002488,58]
[379475129,1755302820475,152.0,0.00024846,57]
[379475130,1755302820785,152.0,0.00024811,56]
[379475131,1755302821138,152.0,0.00024776,55]
[379475132,1755302821553,152.0,0.00024741,54]
[379475133,1755302821986,152.0,0.00024707,53]
[379475134,1755302822428,152.0,0.00024672,52]
[379475135,1755302822585,152.0,0.00024637,51]
[379475136,1755302822965,152.0,0.00024602,50]
[379475137,1755302823349,152.0,0.00024568,49]
[379475140,1755302826390,152.0,0.00024533,48]
[379475141,1755302826591,152.0,0.00024498,47]
[379475142,1755302826947,152.0,0.00024463,46]
[379475143,1755302827409,152.0,0.00024429,45]
[379475144,1755302827645,152.0,0.00024394,44]
[379475145,1755302827755,152.0,0.00024359,43]
[379475146,1755302827893,152.0,0.00024324,42]
[379475147,1755302828028,152.0,0.0002429,41]
[379475148,1755302828421,152.0,0.00024255,40]
[379475149,1755302828593,152.0,0.0002422,39]
[379475150,1755302828687,152.0,0.00024185,38]
[379475151,1755302828800,152.0,0.00024151,37]
[379475152,1755302829107,152.0,0.00024116,36]
[379475153,1755302829615,152.0,0.00024081,35]
[379475154,1755302829764,152.0,0.00024046,34]
[379475155,1755302830009,152.0,0.00024012,33]
[379475157,1755302830098,152.0,0.00023977,32]
[379475159,1755302830686,152.0,0.00023942,31]
[379475160,1755302831030,152.0,0.00023907,30]
[379475161,1755302835787,150.0,0.00028,30]
[379475165,1755303032134,-574.90953772,0.00017821,2]
[379475166,1755303032175,-425.09046228,0.00017821,2]
[379475167,1755303032185,-1000.0,0.0001786,3]
[379475168,1755303032195,-300.0,0.000179,6]
[379475169,1755303032204,-85.09729452,0.0001791,3]
[379475170,1755303032237,-914.90270548,0.0001791,3]
[379475171,1755303032249,-1200.0,0.00017999,2]
[379475172,1755303032268,-5223.79,0.00018,2]
[379475173,1755303032287,-203.915708,0.00018,6]
[379475232,1755303038885,-289.71359248,0.00018,6]
[379475233,1755303040022,-106.37069952,0.00018,6]
[379475234,1755303040033,-250.0,0.00018047,2]
[379475235,1755303040043,-346.8,0.000181,2]
[379475236,1755303040052,-165.88,0.000181,2]
[379475237,1755303040062,-338.98850393,0.000181,2]
[379475238,1755303040074,-38.91149607,0.000181,2]
[379475239,1755303040083,-165.88,0.000181,2]
[379475241,1755303040093,-900.0,0.000181,6]
[379475242,1755303040103,-174.00850543,0.00018109,3]
[379475243,1755303040114,-825.99149457,0.00018109,3]
[379475244,1755303040124,-346.9,0.000182,2]
[379475245,1755303040134,-538.83,0.000182,2]
[379475246,1755303040144,-1300.0,0.000182,6]
[379475247,1755303040153,-894.0,0.00018234,2]
[379475248,1755303040162,-1172.0,0.00018234,2]
[379475249,1755303040172,-763.639,0.00018234,2]
[379475250,1755303040182,-4150.0,0.00018234,2]
[379475251,1755303040192,-6088.0,0.00018234,2]
[379475252,1755303040201,-21485.0,0.00018234,2]
[379475253,1755303040211,-1600.0,0.000183,6]
[379475254,1755303040220,-633.0,0.00018347,2]
[379475255,1755303040230,-308.0,0.00018384,3]
[379475256,1755303040240,-300.0,0.000184,2]
[379475257,1755303040250,-165.88,0.000184,2]
[379475258,1755303040260,-172.75,0.000184,2]
[379475259,1755303040270,-538.83,0.000184,2]
[379475260,1755303040280,-300.0,0.000184,6]
[379475261,1755303040290,-213.09929491,0.00018498,2]
[379475262,1755303040299,-2961.58,0.000185,2]
[379475263,1755303040309,-173.45,0.000185,2]
[379475264,1755303040318,-583.45,0.000185,2]
[379475265,1755303040328,-300.0,0.000185,6]
[379475266,1755303040338,-309.35,0.0001856,2]
[379475267,1755303040348,-150.0,0.0001856,2]
[379475268,1755303040358,-150.0,0.0001856,2]
[379475270,1755303040368,-150.0,0.0001856,2]
[379475272,1755303040380,-633.0,0.00018585,2]
[379475274,1755303040390,-300.0,0.000186,6]
[379475276,1755303040400,-691.99963837,0.00018632,2]
[379475279,1755303040412,-3705.29649699,0.00018669,2]
[379475281,1755303040422,-142162.39138628,0.0001867,2]
[379475283,1755303040432,-7785.0954521,0.00018674,2]
[379475285,1755303040443,-142162.39138628,0.00018675,2]
[379475287,1755303040456,-277.35679052,0.00018676,2]
[379475289,1755303040469,-4716.97676233,0.00018677,2]
[379475291,1755303040479,-300.0,0.00018677,2]
[379475293,1755303040490,-150.0,0.00018677,2]
[379475295,1755303040502,-691.99963836,0.00018686,2]
[379475297,1755303040512,-3257.8216687,0.00018688,2]
[379475299,1755303040522,-3705.29649699,0.00018691,2]
[379475301,1755303040534,-633.0,0.00018693,2]
[379475304,1755303040544,-3257.8216687,0.00018697,2]
[379475306,1755303040556,-3257.8216687,0.00018698,2]
[379475308,1755303040566,-23093.25289676,0.00018699,2]
[379475310,1755303040576,-300.0,0.000187,2]
[379475312,1755303040586,-360.24,0.000187,2]
[379475314,1755303040596,-300.0,0.000187,6]
[379475316,1755303040606,-168.0,0.00018703,2]
[379475318,1755303040618,-168.0,0.00018707,2]
[379475320,1755303040628,-23093.25289676,0.00018707,2]
[379475322,1755303040639,-168.0,0.00018708,2]
[379475324,1755303040649,-23093.25289676,0.0001871,2]
[379475326,1755303040660,-142162.39138628,0.00018712,2]
[379475328,1755303040671,-3257.8216687,0.00018715,2]
[379475330,1755303040682,-4716.97676233,0.00018716,2]
[379475331,1755303040692,-150.0,0.00018716,2]
[379475332,1755303040702,-185.41,0.00018722,2]
[379475333,1755303040712,-185.41,0.00018722,2]
[379475334,1755303040722,-23093.25289676,0.00018723,2]
[379475335,1755303040732,-23093.25289676,0.00018724,2]
[379475336,1755303040742,-4716.97676233,0.00018724,2]
[379475337,1755303040752,-160.0,0.00018725,2]
[379475338,1755303040762,-500.0,0.00018725,2]
[379475339,1755303040772,-500.0,0.00018725,2]
[379475340,1755303040782,-500.0,0.00018725,2]
[379475341,1755303040792,-500.0,0.00018725,2]
[379475343,1755303040802,-500.0,0.00018725,2]
[379475345,1755303040812,-500.0,0.00018725,2]
[379475347,1755303040822,-500.0,0.00018725,2]
[379475349,1755303040834,-500.0,0.00018725,2]
[379475351,1755303040844,-500.0,0.00018725,2]
[379475353,1755303040854,-151.0,0.00018725,2]
[379475355,1755303040864,-151.0,0.00018725,2]
[379475357,1755303040875,-151.0,0.00018725,2]
[379475360,1755303040886,-151.0,0.00018725,2]
[379475362,1755303040896,-287.0,0.00018725,2]
[379475364,1755303040907,-500.0,0.00018725,2]
[379475366,1755303040916,-500.0,0.00018725,2]
[379475368,1755303040926,-500.0,0.00018725,2]
[379475370,1755303040936,-500.0,0.00018725,2]
[379475372,1755303040946,-500.0,0.00018725,2]
[379475374,1755303040956,-500.0,0.00018725,2]
[379475376,1755303040967,-500.0,0.00018725,2]
[379475378,1755303040976,-500.0,0.00018725,2]
[379475380,1755303040986,-500.0,0.00018725,2]
[379475382,1755303040996,-500.0,0.00018725,2]
[379475384,1755303041005,-500.0,0.00018725,2]
[379475386,1755303041015,-500.0,0.00018725,2]
[379475388,1755303041025,-500.0,0.00018725,2]
[379475390,1755303041035,-500.0,0.00018725,2]
[379475392,1755303041045,-500.0,0.00018725,2]
[379475394,1755303041054,-500.0,0.00018725,2]
[379475396,1755303041064,-500.0,0.00018725,2]
[379475398,1755303041074,-500.0,0.00018725,2]
[379475401,1755303041084,-500.0,0.00018725,2]
[379475403,1755303041093,-500.0,0.00018725,2]
[379475405,1755303041103,-250.0,0.00018725,2]
[379475407,1755303041112,-250.0,0.00018725,2]
[379475409,1755303041122,-250.0,0.00018725,2]
[379475411,1755303041133,-250.0,0.00018725,2]
[379475413,1755303041144,-250.0,0.00018725,2]
[379475415,1755303041155,-250.0,0.00018725,2]
[379475417,1755303041165,-250.0,0.00018725,2]
[379475419,1755303041174,-250.0,0.00018725,2]
[379475421,1755303041184,-250.0,0.00018725,2]
[379475423,1755303041194,-150.0,0.00018731,2]
[379475445,1755303041729,-1000.0,0.00018731,2]
[379475446,1755303041761,-300.0,0.00018731,2]
[379475447,1755303041772,-666.0,0.00018731,2]
[379475448,1755303041782,-4716.97676233,0.00018731,2]
[379475449,1755303041791,-162981.48211965,0.00018732,2]
[379475450,1755303041817,-302.4041335,0.00018732,2]
[379475451,1755303041828,-575.09046228,0.00018732,2]
[379475452,1755303041840,-342.26322073,0.00018732,2]
[379475474,1755303158659,289.68,0.00024685,30]
[379475475,1755303199550,150.0,0.00028,30]
[379475476,1755303216396,4359.0,0.00028,30]
[379475477,1755303216596,170.0,0.00017778,7]
[379475478,1755303234204,190.0,0.0001726,3]
[379475479,1755303321242,168.59,0.00026665,120]
[379475480,1755303416770,687.82131392,0.00028,30]
[379475481,1755303435198,500.0,0.00028,30]
[379475482,1755303445618,500.0,0.00028,30]
[379475483,1755303490220,197.79,0.00028,30]
[379475484,1755303494116,435.18,0.00013699,2]
[379475486,1755303549963,198.0,0.0001726,3]
[379475488,1755303764607,-921.28324466,0.00017807,3]
[379475489,1755303855447,150.0,0.00028,30]
[379475490,1755303861598,150.0,0.00028,30]
[379475491,1755303906806,295.04,0.00017088,2]
[379475492,1755303926856,175.82,0.00028,30]
[379475493,1755303996849,156.28,0.00028,30]
[379475494,1755304015878,-31.41,0.00017776,2]
[379475495,1755304016359,-137.18,0.00017776,2]
[379475496,1755304016369,-31.41,0.00017807,3]
[379475497,1755304021336,-47.30675534,0.00017807,3]
[379475498,1755304021356,-47.30675534,0.00017817,2]
[379475499,1755304021367,-205.38648932,0.00017817,2]
[379475501,1755304029190,-643.05789486,0.00017817,2]
[379475505,1755304086538,265.54,0.00024685,30]
[379475510,1755304178154,174.0,0.00017233,3]
[379475523,1755304232315,-104.24886048,0.00017817,2]
[379475524,1755304232324,-1000.0,0.00017858,3]
[379475525,1755304232334,-400.0,0.000179,6]
[379475526,1755304232343,-1000.0,0.00017963,3]
[379475527,1755304232353,-2343.51,0.00018,2]
[379475528,1755304232363,-900.0,0.00018,6]
[379475529,1755304232374,-282.0,0.00018099,2]
[379475530,1755304232384,-1200.0,0.00018099,2]
[379475531,1755304232394,-300.0,0.00018099,2]
[379475532,1755304232404,-165.88,0.000181,2]
[379475533,1755304232414,-150.0,0.000181,2]
[379475534,1755304232423,-331.76,0.000181,2]
[379475536,1755304232434,-346.8,0.000181,2]
[379475538,1755304232444,-165.88,0.000181,2]
[379475540,1755304232453,-165.88,0.000181,2]
[379475542,1755304232464,-1300.0,0.000181,6]
[379475545,1755304232473,-500.0,0.00018164,2]
[379475547,1755304232484,-204.90316818,0.0001817,2]
[379475549,1755304232493,-277.35679052,0.00018189,2]
[379475551,1755304232504,-165.88,0.000182,2]
[379475553,1755304232513,-1077.0,0.000182,2]
[379475556,1755304232523,-346.9,0.000182,2]
[379475559,1755304232533,-331.76,0.000182,2]
[379475562,1755304232547,-300.0,0.000182,2]
[379475565,1755304232557,-1800.0,0.000182,6]
[379475567,1755304232567,-500.0,0.00018247,2]
[379475569,1755304232577,-2300.0,0.000183,6]
[379475571,1755304232588,-412.95779037,0.00018369,2]
[379475573,1755304232598,-400.0,0.000184,6]
[379475575,1755304232608,-168.0,0.0001845,2]
[379475577,1755304232619,-300.0,0.000185,2]
[379475579,1755304232630,-614.6,0.000185,2]
[379475581,1755304232640,-165.88,0.000185,2]
[379475584,1755304232651,-400.0,0.000185,6]
[379475586,1755304232661,-713.7,0.00018564,2]
[379475588,1755304232671,-1000.0,0.00018599,2]
[379475590,1755304232682,-400.0,0.000186,6]
[379475592,1755304232692,-174.83,0.00018636,2]
[379475594,1755304232703,-168.0,0.00018639,2]
[379475596,1755304232713,-4537.06649098,0.00018651,2]
[379475598,1755304232724,-13960.66720127,0.00018658,2]
[379475605,1755304232777,-2005.27625586,0.00018658,2]
[379475649,1755304238386,-21199.9788,0.00018658,2]
[379475808,1755304476994,300.00999999,0.00028,120]
[379475809,1755304491782,170.0,0.00017233,3]
[379475810,1755304571427,170.0,0.0001776,7]
[379475811,1755304573526,150.0,0.00028,30]
[379475818,1755304806410,173.0,0.00017233,3]
[379475819,1755304810638,200.0,0.00028,30]
[379475820,1755304820288,51358.0,0.00027,30]
[379475822,1755304869512,413.42,0.00013699,2]
[379475825,1755305121890,165.0,0.00017233,3]
[379475826,1755305121996,150.0,0.00017088,2]
[379475827,1755305161648,-190.39457688,0.00017744,2]
[379475828,1755305171267,-500.0,0.00017744,2]
[379475829,1755305178434,-269.76566611,0.00017744,2]
[379475831,1755305227673,173.04880239,0.00028,30]
[379475836,1755305329278,-39.83975701,0.00017744,2]
[379475837,1755305329322,-76.28953164,0.00017751,2]
[379475848,1755305383827,243.41,0.00024685,30]
[379475849,1755305404035,-202.78,0.00017717,2]
[379475850,1755305404643,160.77512694,0.00017,2]
[379475859,1755305432676,-47.22,0.00017717,2]
[379475860,1755305432687,-92.30046836,0.00017751,2]
[379475861,1755305432697,-1200.0,0.00017999,2]
[379475862,1755305432708,-1547.23953164,0.00018,2]
[379475900,1755305438603,164.0,0.00017233,3]
[379475901,1755305438649,-278.14937721,0.00018,2]
[379475902,1755305438658,-11200.0,0.00018,2]
[379475903,1755305438668,-2000.0,0.00018581,2]
[379475904,1755305438677,-2000.0,0.00018582,2]
[379475905,1755305438686,-200.0,0.00018582,2]
[379475906,1755305438695,-614.98083375,0.00018635,2]
[379475908,1755305438705,-1816.44736292,0.00018635,2]
[379475910,1755305438714,-158.64146418,0.00018636,2]
[379475911,1755305438723,-277.35679052,0.00018642,2]
[379475913,1755305438733,-287.5861797,0.00018655,2]
[379475915,1755305438742,-201.50092841,0.00018655,2]
[379475917,1755305438752,-56255.07779672,0.00018658,2]
[379475919,1755305438761,-168.0,0.0001866,2]
[379475921,1755305438770,-160.0,0.00018663,2]
[379475923,1755305438780,-26278.56070285,0.00018663,2]
[379475925,1755305438789,-6651.52492708,0.00018663,2]
[379475928,1755305438799,-204.90316819,0.00018664,2]
[379475930,1755305438809,-5230.7530047,0.00018664,2]
[379475932,1755305438818,-1816.44736289,0.00018664,2]
[379475934,1755305438827,-339.99390857,0.00018668,2]
[379475935,1755305438836,-1000.0,0.00018668,2]
[379475938,1755305438845,-11728.7923,0.00018672,2]
[379475939,1755305438854,-2500.0,0.00018672,2]
[379475942,1755305438863,-774.69148743,0.00018673,2]
[379475944,1755305438873,-5230.7530047,0.00018684,2]
[379475946,1755305438882,-4537.06649098,0.00018684,2]
[379475948,1755305438891,-5230.7530047,0.00018685,2]
[379475950,1755305438901,-339.99390857,0.00018686,2]
[379475952,1755305438910,-26278.56070285,0.00018688,2]
[379475954,1755305438919,-339.99390857,0.00018688,2]
[379475956,1755305438930,-4537.06649098,0.0001869,2]
[379475958,1755305438939,-339.99390857,0.00018691,2]
[379475960,1755305438948,-26278.56070285,0.00018693,2]
[379475962,1755305438957,-339.99390857,0.00018694,2]
[379475964,1755305438966,-1816.44736289,0.00018694,2]
[379475966,1755305438975,-4537.06649098,0.00018694,2]
[379475968,1755305438984,-774.69148743,0.00018698,2]
[379475970,1755305438994,-5230.7530047,0.00018699,2]
[379475972,1755305439003,-500.0,0.00018702,2]
[379475973,1755305439012,-151.0,0.00018702,2]
[379475974,1755305439021,-500.0,0.00018702,2]
[379475975,1755305439030,-151.0,0.00018702,2]
[379475976,1755305439039,-500.0,0.00018702,2]
[379475977,1755305439048,-500.0,0.00018702,2]
[379475978,1755305439057,-151.0,0.00018702,2]
[379475979,1755305439066,-500.0,0.00018702,2]
[379475980,1755305439075,-500.0,0.00018702,2]
[379475981,1755305439084,-151.0,0.00018702,2]
[379475982,1755305439093,-160.0,0.00018702,2]
[379475984,1755305439103,-500.0,0.00018702,2]
[379475986,1755305439112,-287.0,0.00018702,2]
[379475988,1755305439121,-500.0,0.00018702,2]
[379475990,1755305439131,-500.0,0.00018702,2]
[379475992,1755305439140,-500.0,0.00018702,2]
[379475994,1755305439150,-500.0,0.00018702,2]
[379475996,1755305439159,-500.0,0.00018702,2]
[379475998,1755305439169,-500.0,0.00018702,2]
[379476000,1755305439178,-500.0,0.00018702,2]
[379476003,1755305439188,-500.0,0.00018702,2]
[379476005,1755305439197,-250.0,0.00018702,2]
[379476007,1755305439207,-500.0,0.00018702,2]
[379476008,1755305439216,-250.0,0.00018702,2]
[379476011,1755305439225,-500.0,0.00018702,2]
[379476013,1755305439234,-250.0,0.00018702,2]
[379476015,1755305439244,-500.0,0.00018702,2]
[379476017,1755305439253,-250.0,0.00018702,2]
[379476019,1755305439262,-500.0,0.00018702,2]
[379476021,1755305439272,-250.0,0.00018702,2]
[379476023,1755305439281,-500.0,0.00018702,2]
[379476025,1755305439290,-250.0,0.00018702,2]
[379476026,1755305439300,-250.0,0.00018702,2]
[379476028,1755305439310,-250.0,0.00018702,2]
[379476031,1755305439320,-250.0,0.00018702,2]
[379476033,1755305439329,-500.0,0.00018702,2]
[379476035,1755305439338,-500.0,0.00018702,2]
[379476037,1755305439347,-500.0,0.00018702,2]
[379476038,1755305439357,-500.0,0.00018702,2]
[379476040,1755305439366,-500.0,0.00018702,2]
[379476042,1755305439379,-500.0,0.00018702,2]
[379476044,1755305439388,-500.0,0.00018702,2]
[379476046,1755305439399,-500.0,0.00018702,2]
[379476048,1755305439408,-500.0,0.00018702,2]
[379476050,1755305439418,-4537.06649098,0.00018707,2]
[379476052,1755305439430,-6651.52492708,0.00018712,2]
[379476054,1755305439439,-903.0,0.00018713,2]
[379476056,1755305439447,-1254.0,0.00018713,2]
[379476058,1755305439456,-2029.0,0.00018713,2]
[379476060,1755305439465,-3370.0,0.00018713,2]
[379476062,1755305439475,-599.0,0.00018713,2]
[379476064,1755305439484,-566.0,0.00018713,2]
[379476066,1755305439493,-1656.0,0.00018713,2]
[379476068,1755305439502,-1297.0,0.00018713,2]
[379476070,1755305439511,-1172.0,0.00018713,2]
[379476072,1755305439520,-894.0,0.00018713,2]
[379476074,1755305439529,-717.0,0.00018713,2]
[379476076,1755305439538,-6088.0,0.00018713,2]
[379476078,1755305439547,-4150.0,0.00018713,2]
[379476080,1755305439556,-93421.00005385,0.00018713,2]
[379476082,1755305439566,-6651.52492708,0.00018715,2]
[379476084,1755305439575,-6651.52492708,0.00018718,2]
[379476086,1755305439587,-1816.44736289,0.00018723,2]
[379476088,1755305439597,-774.69148743,0.00018723,2]
[379476090,1755305439607,-196.62772119,0.00018724,2]
[379476092,1755305439616,-26278.56070285,0.00018725,2]
[379476094,1755305439626,-2105.7050011,0.00018727,2]
[379476096,1755305439635,-1733.7195629,0.00018727,2]
[379476097,1755305439644,-1000.0,0.00018728,2]
[379476099,1755305439653,-5230.7530047,0.00018731,2]
[379476100,1755305439662,-211.92094487,0.00018731,2]
[379476102,1755305439672,-150.0,0.00018733,2]
[379476103,1755305439682,-150.0,0.00018734,2]
[379476105,1755305439691,-150.0,0.00018734,2]
[379476106,1755305439699,-150.0,0.00018734,2]
[379476108,1755305439707,-150.0,0.00018734,2]
[379476109,1755305439717,-150.0,0.00018734,2]
[379476110,1755305439726,-150.0,0.00018734,2]
[379476112,1755305439736,-150.0,0.00018734,2]
[379476113,1755305439745,-1000.0,0.00018734,2]
[379476114,1755305439754,-93421.00005385,0.00018734,2]
[379476115,1755305439766,-1234.0,0.00018735,2]
[379476116,1755305439775,-2344144.78434906,0.00018735,2]
[379476120,1755305440747,-2237.58087242,0.00018735,2]
[379476167,1755305443339,-457.13520606,0.00018713,2]
[379476187,1755305445713,157.0,0.00028,30]
[379476192,1755305447073,-3895.12977625,0.00018713,2]
[379476193,1755305447088,-2177.08987385,0.00018713,2]
[379476194,1755305447415,157.0,0.00028,30]
[379476195,1755305448086,157.0,0.00028,30]
[379476196,1755305458679,157.0,0.00028,30]
[379476197,1755305467031,157.0,0.00028,30]
[379476198,1755305468765,157.0,0.00028,30]
[379476199,1755305480563,157.0,0.00028,30]
[379476200,1755305481119,157.0,0.00028,30]
[379476201,1755305502459,157.0,0.00028,30]
[379476202,1755305503121,157.0,0.00028,30]
[379476203,1755305531574,157.0,0.00028,30]
[379476204,1755305532591,157.0,0.00028,30]
[379476205,1755305533303,157.0,0.00028,30]
[379476206,1755305535957,157.0,0.00028,30]
[379476207,1755305541571,157.0,0.00028,30]
[379476208,1755305551428,157.0,0.00028,30]
[379476209,1755305564653,176.0,0.00028,30]
[379476210,1755305569398,170.0,0.00017777,7]
[379476211,1755305753985,157.0,0.00017233,3]
[379476213,1755305873567,-432.24,0.00017769,2]
[379476214,1755305874983,392.74,0.00013699,2]
[379476216,1755306328514,1000.0,0.00027973,30]
[379476217,1755306328908,223.12,0.00024685,30]
[379476219,1755306353460,1000.0,0.00028,30]
[379476220,1755306356161,-2238.33,0.00017529,2]
[379476221,1755306365218,500.0,0.00027973,30]
[379476224,1755306378421,-300.0,0.00017528,2]
[379476225,1755306378462,-3728.34,0.00017529,2]
[379476226,1755306400641,-379.17209822,0.00017528,2]
[379476227,1755306400668,-530.52388088,0.00017528,2]
[379476228,1755306400695,-2.48603167,0.00017528,2]
[379476229,1755306400763,-170.35597846,0.00017528,2]
[379476230,1755306412045,-203.93501998,0.00017528,2]
[379476231,1755306412068,-363.79043614,0.00017528,2]
[379476232,1755306412090,-4059.44,0.00017529,2]
[379476233,1755306412113,-250.0,0.00017529,2]
[379476234,1755306412136,-168.0,0.00017665,2]
[379476235,1755306412159,-311.9,0.00017758,2]
[379476236,1755306412183,-311.9,0.00017767,2]
[379476237,1755306412206,-177.76,0.00017769,2]
[379476238,1755306412228,-178.46,0.00017771,2]
[379476239,1755306412251,-311.9,0.00017777,2]
[379476240,1755306412275,-311.9,0.00017786,2]
[379476241,1755306412298,-311.9,0.00017795,2]
[379476242,1755306412321,-311.9,0.00017805,2]
[379476243,1755306412343,-311.9,0.00017814,2]
[379476244,1755306412365,-311.9,0.00017824,2]
[379476245,1755306412389,-311.9,0.00017833,2]
[379476246,1755306412412,-1200.0,0.00017837,2]
[379476247,1755306412442,-634.0,0.00017838,2]
[379476248,1755306412465,-311.9,0.00017842,2]
[379476249,1755306412488,-311.9,0.00017852,2]
[379476250,1755306412511,-311.9,0.00017861,2]
[379476251,1755306412533,-311.9,0.0001787,2]
[379476252,1755306412555,-311.9,0.0001788,2]
[379476253,1755306412578,-311.9,0.00017889,2]
[379476254,1755306412600,-311.9,0.00017898,2]
[379476255,1755306412623,-311.9,0.00017908,2]
[379476256,1755306412945,-311.9,0.00017917,2]
[379476257,1755306412970,-311.9,0.00017926,2]
[379476258,1755306412994,-311.9,0.00017936,2]
[379476259,1755306413016,-32006.61454388,0.00018,2]
[379476266,1755306454081,204.6754542,0.00028,30]
[379476267,1755306458781,-250.0,0.00017786,2]
[379476268,1755306461752,1500.0,0.000245,120]
[379476269,1755306534448,160.83,0.00028,30]
[379476281,1755306553834,170.0,0.00017727,7]
[379476282,1755306599325,-301.15,0.00017725,2]
[379476283,1755306606516,-197.06,0.00017725,2]
[379476292,1755306631741,-4.95,0.00017725,2]
[379476293,1755306631751,-161.52,0.00017747,2]
[379476294,1755306631760,-27.35679052,0.00017786,2]
[379476295,1755306631770,-56.1986831,0.00017826,2]
[379476296,1755306631781,-198.45462219,0.00017826,2]
[379476297,1755306631791,-1200.0,0.00017826,2]
[379476298,1755306631801,-300.0,0.00017826,2]
[379476299,1755306631810,-160.0,0.00017827,2]
[379476300,1755306631819,-500.0,0.00017827,2]
[379476301,1755306631829,-21.69088029,0.00017827,2]
[379476302,1755306631840,-478.30911971,0.00017827,2]
[379476303,1755306631849,-500.0,0.00017827,2]
[379476304,1755306631861,-500.0,0.00017827,2]
[379476305,1755306631874,-500.0,0.00017827,2]
[379476306,1755306631883,-500.0,0.00017827,2]
[379476307,1755306631894,-500.0,0.00017827,2]
[379476309,1755306631903,-339.20283014,0.00018,2]
[379476312,1755306631915,-803.51,0.00018,2]
[379476314,1755306631927,-3345.21915931,0.00018,2]
[379476316,1755306631944,-488.70112046,0.00018,2]
[379476325,1755306632003,-300.75487043,0.00018,2]
[379476329,1755306632014,-3342.79084581,0.00018,2]
[379476338,1755306632059,-20199.07571143,0.00018,2]
[379476340,1755306632068,-433.6331489,0.00018,2]
[379476342,1755306632078,-168.0,0.00018083,2]
[379476344,1755306632086,-468.42,0.000181,2]
[379476346,1755306632095,-1077.66,0.00018178,2]
[379476348,1755306632105,-211.92094487,0.00018397,2]
[379476350,1755306632114,-1631.38,0.000184,2]
[379476352,1755306632123,-538.83,0.000184,2]
[379476353,1755306632132,-1135.62,0.000184,2]
[379476354,1755306632142,-538.83,0.000184,2]
[379476355,1755306632151,-331.76,0.000184,2]
[379476356,1755306632160,-1596.4,0.000184,2]
[379476357,1755306632169,-165.88,0.000184,2]
[379476358,1755306632178,-468.42,0.000184,2]
[379476359,1755306632187,-160.0,0.00018401,2]
[379476360,1755306632196,-168.0,0.00018466,2]
[379476361,1755306632205,-798.2,0.000185,2]